fUSD/lending_fUSD_20250120
["ID","MTS","AMOUNT","RATE_DAILY","PERIOD"]
[349738657,1737403834195,-756.1,0.00019523,2]
[349738658,1737403834206,-892.71,0.00019523,2]
[349738659,1737403834217,-500.0,0.00019523,2]
[349738660,1737403834226,-500.0,0.00019523,2]
[349738661,1737403834237,-589.2622914,0.00019523,2]
[349738662,1737403834246,-500.0,0.00019523,2]
[349738663,1737403834256,-500.0,0.00019523,2]
[349738664,1737403834266,-500.0,0.00019523,2]
[349738665,1737403834276,-500.0,0.00019523,2]
[349738666,1737403834287,-500.0,0.00019523,2]
[349738667,1737403834298,-500.0,0.00019523,2]
[349738668,1737403834309,-500.0,0.00019523,2]
[349738669,1737403834319,-500.0,0.00019523,2]
[349738670,1737403834329,-500.0,0.00019523,2]
[349738671,1737403834339,-500.0,0.00019523,2]
[349738672,1737403834349,-500.0,0.00019523,2]
[349738673,1737403834360,-500.0,0.00019523,2]
[349738674,1737403834372,-500.0,0.00019523,2]
[349738675,1737403834384,-500.0,0.00019523,2]
[349738676,1737403834395,-500.0,0.00019523,2]
[349738677,1737403834406,-500.0,0.00019523,2]
[349738678,1737403834417,-619.82,0.00019523,2]
[349738679,1737403834427,-500.0,0.00019523,2]
[349738680,1737403834437,-153.26170881,0.00019523,2]
[349738681,1737403834453,-544.55,0.00019523,2]
[349738682,1737403834465,-584.29,0.00019523,2]
[349738683,1737403834476,-500.0,0.00019523,2]
[349738684,1737403834485,-500.0,0.00019523,2]
[349738685,1737403834495,-500.0,0.00019523,2]
[349738686,1737403834505,-500.0,0.00019523,2]
[349738687,1737403834515,-516.21243224,0.00019523,2]
[349738688,1737403834524,-500.0,0.00019523,2]
[349738689,1737403834533,-500.0,0.00019523,2]
[349738690,1737403834542,-573.5,0.00019523,2]
[349738691,1737403834552,-500.0,0.00019523,2]
[349738692,1737403834562,-500.0,0.00019523,2]
[349738693,1737403834571,-500.0,0.00019523,2]
[349738694,1737403834580,-506.36,0.00019523,2]
[349738695,1737403834590,-500.0,0.00019523,2]
[349738696,1737403834599,-500.0,0.00019523,2]
[349738697,1737403834609,-500.0,0.00019523,2]
[349738698,1737403834621,-507.05,0.00019523,2]
[349738699,1737403834630,-500.0,0.00019523,2]
[349738700,1737403834639,-500.0,0.00019523,2]
[349738701,1737403834649,-500.0,0.00019523,2]
[349738702,1737403834658,-654.16,0.00019523,2]
[349738703,1737403834668,-500.0,0.00019523,2]
[349738704,1737403834677,-500.0,0.00019523,2]
[349738705,1737403834686,-500.0,0.00019523,2]
[349738706,1737403834695,-243.39231974,0.00019587,2]
[349738707,1737403834705,-2035.0,0.000196,2]
[349738708,1737403834714,-500.0,0.00019624,2]
[349738709,1737403834724,-1771.14,0.00019624,2]
[349738710,1737403834733,-951.53,0.00019624,2]
[349738711,1737403834743,-2120.59,0.00019624,2]
[349738712,1737403834752,-865.22,0.00019624,2]
[349738713,1737403834761,-1323.03,0.00019624,2]
[349738714,1737403834771,-595.61,0.00019624,2]
[349738715,1737403834781,-848.0,0.00019624,2]
[349738716,1737403834791,-1262.15,0.00019624,2]
[349738717,1737403834801,-2131.58,0.00019624,2]
[349738718,1737403834812,-985.41,0.00019624,2]
[349738719,1737403834822,-500.0,0.00019624,2]
[349738720,1737403834832,-681.08,0.00019624,2]
[349738721,1737403834841,-500.0,0.00019624,2]
[349738722,1737403834850,-1600.71,0.00019624,2]
[349738723,1737403834860,-582.92,0.00019624,2]
[349738724,1737403834871,-775.16,0.00019624,2]
[349738725,1737403834881,-500.0,0.00019624,2]
[349738726,1737403834891,-681.19,0.00019624,2]
[349738727,1737403834901,-1242.65,0.00019624,2]
[349738728,1737403834911,-2311.79,0.00019624,2]
[349738729,1737403834921,-589.32,0.00019624,2]
[349738730,1737403834931,-513.84,0.00019624,2]
[349738731,1737403834940,-500.0,0.00019624,2]
[349738732,1737403834950,-508.26,0.00019624,2]
[349738733,1737403834960,-1644.0,0.00019624,2]
[349738734,1737403834973,-500.0,0.00019624,2]
[349738735,1737403834995,-500.0,0.00019624,2]
[349738736,1737403835015,-5000.0,0.00019625,2]
[349738737,1737403835027,-2721.605,0.00019625,2]
[349738738,1737403835038,-150.68,0.00019696,2]
[349738739,1737403835048,-150.0,0.00019696,2]
[349738740,1737403835059,-437.63,0.00019696,2]
[349738741,1737403835068,-301.37,0.00019696,2]
[349738742,1737403835077,-150.0,0.00019696,2]
[349738743,1737403835087,-437.63,0.00019696,2]
[349738744,1737403835097,-150.0,0.00019696,2]
[349738745,1737403835106,-150.0,0.00019696,2]
[349738746,1737403835117,-437.63,0.00019696,2]
[349738747,1737403835126,-150.0,0.00019696,2]
[349738748,1737403835135,-150.0,0.00019696,2]
[349738749,1737403835145,-150.0,0.00019696,2]
[349738750,1737403835154,-437.63,0.00019696,2]
[349738751,1737403835163,-150.0,0.00019696,2]
[349738752,1737403835173,-437.63,0.00019696,2]
[349738753,1737403835182,-150.0,0.00019696,2]
[349738754,1737403835195,-150.0,0.00019696,2]
[349738755,1737403835204,-190.34,0.00019715,2]
[349738756,1737403835214,-500.0,0.00019725,2]
[349738757,1737403835223,-500.0,0.00019725,2]
[349738758,1737403835234,-500.0,0.00019725,2]
[349738759,1737403835242,-357.15118505,0.00019725,2]
[349738760,1737403835252,-346.98461568,0.00019725,2]
[349738761,1737403835262,-500.0,0.00019725,2]
[349738762,1737403835271,-500.0,0.00019725,2]
[349738763,1737403835281,-500.0,0.00019725,2]
[349738764,1737403835290,-500.0,0.00019725,2]
[349738765,1737403835299,-500.0,0.00019725,2]
[349738766,1737403835308,-500.0,0.00019725,2]
[349738767,1737403835317,-584.17,0.00019725,2]
[349738768,1737403835327,-500.0,0.00019725,2]
[349738769,1737403835337,-561.51,0.00019725,2]
[349738770,1737403835346,-500.0,0.00019725,2]
[349738771,1737403835355,-1209.34,0.00019725,2]
[349738772,1737403835365,-500.0,0.00019725,2]
[349738773,1737403835374,-500.0,0.00019725,2]
[349738774,1737403835385,-500.0,0.00019725,2]
[349738775,1737403835393,-500.0,0.00019725,2]
[349738776,1737403835403,-500.0,0.00019725,2]
[349738777,1737403835412,-500.0,0.00019725,2]
[349738778,1737403835422,-204.90952584,0.00019725,2]
[349738779,1737403835432,-500.0,0.00019725,2]
[349738780,1737403835448,-500.0,0.00019725,2]
[349738781,1737403835465,-446.02850379,0.00019725,2]
[349738782,1737403835475,-500.0,0.00019725,2]
[349738783,1737403835484,-500.0,0.00019725,2]
[349738784,1737403835493,-500.0,0.00019725,2]
[349738785,1737403835503,-516.75959952,0.00019725,2]
[349738786,1737403835512,-500.0,0.00019725,2]
[349738787,1737403835522,-500.0,0.00019725,2]
[349738788,1737403835531,-500.0,0.00019725,2]
[349738789,1737403835541,-500.0,0.00019725,2]
[349738790,1737403835551,-500.0,0.00019725,2]
[349738791,1737403835560,-503.12365871,0.00019725,2]
[349738792,1737403835570,-500.0,0.00019725,2]
[349738793,1737403835580,-500.0,0.00019725,2]
[349738794,1737403835589,-500.0,0.00019725,2]
[349738795,1737403835599,-507.48484842,0.00019725,2]
[349738796,1737403835608,-500.0,0.00019725,2]
[349738797,1737403835620,-482.05418605,0.00019725,2]
[349738798,1737403835630,-500.0,0.00019725,2]
[349738799,1737403835639,-500.0,0.00019725,2]
[349738800,1737403835648,-500.0,0.00019725,2]
[349738801,1737403835658,-222.08000317,0.00019725,2]
[349738802,1737403835667,-507.78403963,0.00019725,2]
[349738803,1737403835677,-333.34491195,0.00019725,2]
[349738804,1737403835722,-166.65508805,0.00019725,2]
[349738805,1737403835731,-500.0,0.00019725,2]
[349738806,1737403835741,-500.0,0.00019725,2]
[349738807,1737403835750,-200.0,0.00019725,2]
[349738808,1737403835760,-500.0,0.00019725,2]
[349738809,1737403835770,-500.0,0.00019725,2]
[349738810,1737403835780,-500.0,0.00019725,2]
[349738811,1737403835790,-543.39519088,0.00019725,2]
[349738812,1737403835799,-500.0,0.00019725,2]
[349738813,1737403835808,-500.0,0.00019725,2]
[349738814,1737403835818,-500.0,0.00019725,2]
[349738815,1737403835827,-500.0,0.00019725,2]
[349738816,1737403835837,-500.0,0.00019725,2]
[349738817,1737403835847,-500.0,0.00019725,2]
[349738818,1737403835856,-500.0,0.00019725,2]
[349738819,1737403835867,-500.0,0.00019725,2]
[349738820,1737403835876,-500.0,0.00019725,2]
[349738821,1737403835886,-500.0,0.00019725,2]
[349738822,1737403835895,-500.0,0.00019725,2]
[349738823,1737403835905,-500.0,0.00019725,2]
[349738824,1737403835915,-540.09641533,0.00019725,2]
[349738825,1737403835924,-500.0,0.00019725,2]
[349738826,1737403835934,-500.0,0.00019725,2]
[349738827,1737403835943,-500.0,0.00019725,2]
[349738828,1737403835953,-500.0,0.00019725,2]
[349738829,1737403835963,-500.0,0.00019725,2]
[349738830,1737403835974,-500.0,0.00019725,2]
[349738831,1737403835983,-500.0,0.00019725,2]
[349738832,1737403835993,-500.0,0.00019725,2]
[349738833,1737403836003,-500.0,0.00019725,2]
[349738834,1737403836013,-500.0,0.00019725,2]
[349738835,1737403836023,-500.0,0.00019725,2]
[349738836,1737403836032,-500.0,0.00019725,2]
[349738837,1737403836042,-500.0,0.00019725,2]
[349738838,1737403836051,-500.0,0.00019725,2]
[349738839,1737403836061,-500.0,0.00019725,2]
[349738840,1737403836070,-500.0,0.00019725,2]
[349738841,1737403836080,-500.0,0.00019725,2]
[349738842,1737403836089,-500.0,0.00019725,2]
[349738843,1737403836099,-500.0,0.00019725,2]
[349738844,1737403836108,-500.0,0.00019725,2]
[349738845,1737403836119,-500.0,0.00019725,2]
[349738846,1737403836128,-500.0,0.00019725,2]
[349738847,1737403836137,-500.0,0.00019725,2]
[349738848,1737403836147,-596.45266775,0.00019725,2]
[349738849,1737403836156,-210.53471146,0.00019725,2]
[349738850,1737403836165,-500.0,0.00019725,2]
[349738851,1737403836174,-500.0,0.00019725,2]
[349738852,1737403836184,-500.0,0.00019725,2]
[349738853,1737403836198,-500.0,0.00019725,2]
[349738854,1737403836209,-500.0,0.00019725,2]
[349738855,1737403836219,-500.0,0.00019725,2]
[349738856,1737403836229,-500.0,0.00019725,2]
[349738857,1737403836238,-500.0,0.00019725,2]
[349738858,1737403836247,-500.0,0.00019725,2]
[349738859,1737403836257,-509.05,0.00019725,2]
[349738860,1737403836266,-500.0,0.00019725,2]
[349738861,1737403836276,-579.71,0.00019725,2]
[349738862,1737403836286,-500.0,0.00019725,2]
[349738863,1737403836295,-500.0,0.00019725,2]
[349738864,1737403836304,-500.0,0.00019725,2]
[349738865,1737403836313,-500.0,0.00019725,2]
[349738866,1737403836323,-500.0,0.00019725,2]
[349738867,1737403836332,-500.0,0.00019725,2]
[349738868,1737403836341,-500.0,0.00019725,2]
[349738869,1737403836350,-500.0,0.00019725,2]
[349738870,1737403836359,-500.0,0.00019725,2]
[349738871,1737403836372,-550.0,0.00019725,2]
[349738872,1737403836382,-572.79,0.00019725,2]
[349738873,1737403836391,-500.0,0.00019725,2]
[349738874,1737403836400,-500.0,0.00019725,2]
[349738875,1737403836410,-500.0,0.00019725,2]
[349738876,1737403836419,-160.88379766,0.00019725,2]
[349738877,1737403836428,-500.0,0.00019725,2]
[349738878,1737403836437,-500.0,0.00019725,2]
[349738879,1737403836447,-500.0,0.00019725,2]
[349738880,1737403836456,-500.0,0.00019725,2]
[349738881,1737403836465,-500.0,0.00019725,2]
[349738882,1737403836474,-500.0,0.00019725,2]
[349738883,1737403836483,-500.0,0.00019725,2]
[349738884,1737403836492,-500.0,0.00019725,2]
[349738885,1737403836501,-500.0,0.00019725,2]
[349738886,1737403836510,-500.0,0.00019725,2]
[349738887,1737403836520,-500.0,0.00019725,2]
[349738888,1737403836529,-500.0,0.00019725,2]
[349738889,1737403836538,-731.84,0.00019725,2]
[349738890,1737403836547,-205.64702266,0.00019725,2]
[349738891,1737403836556,-500.0,0.00019725,2]
[349738892,1737403836565,-500.0,0.00019725,2]
[349738893,1737403836575,-500.0,0.00019725,2]
[349738894,1737403836584,-500.0,0.00019725,2]
[349738895,1737403836594,-182.6104028,0.00019725,2]
[349738896,1737403836603,-500.0,0.00019725,2]
[349738897,1737403836612,-500.0,0.00019725,2]
[349738898,1737403836626,-242.00170093,0.00019725,2]
[349738899,1737403836636,-566.91021218,0.00019725,2]
[349738900,1737403836646,-500.0,0.00019725,2]
[349738901,1737403836656,-507.97936771,0.00019725,2]
[349738902,1737403836666,-500.0,0.00019725,2]
[349738903,1737403836675,-500.0,0.00019725,2]
[349738904,1737403836685,-500.0,0.00019725,2]
[349738905,1737403836695,-500.0,0.00019725,2]
[349738906,1737403836704,-500.0,0.00019725,2]
[349738907,1737403836714,-500.0,0.00019725,2]
[349738908,1737403836724,-506.54302831,0.00019725,2]
[349738909,1737403836733,-500.0,0.00019725,2]
[349738910,1737403836743,-722.24,0.00019725,2]
[349738911,1737403836752,-500.0,0.00019725,2]
[349738912,1737403836762,-672.05,0.00019725,2]
[349738913,1737403836771,-500.0,0.00019725,2]
[349738914,1737403836780,-500.0,0.00019725,2]
[349738915,1737403836790,-577.89,0.00019725,2]
[349738916,1737403836800,-500.0,0.00019725,2]
[349738917,1737403836810,-500.0,0.00019725,2]
[349738918,1737403836819,-500.0,0.00019725,2]
[349738919,1737403836829,-502.84135481,0.00019725,2]
[349738920,1737403836839,-507.16292847,0.00019725,2]
[349738921,1737403836849,-593.51436777,0.00019725,2]
[349738922,1737403836858,-607.65,0.00019725,2]
[349738923,1737403836869,-500.0,0.00019725,2]
[349738924,1737403836879,-500.0,0.00019725,2]
[349738925,1737403836888,-500.0,0.00019725,2]
[349738926,1737403837016,-500.0,0.00019725,2]
[349738927,1737403837045,-500.0,0.00019725,2]
[349738928,1737403837054,-500.0,0.00019725,2]
[349738929,1737403837063,-500.0,0.00019725,2]
[349738930,1737403837073,-500.0,0.00019725,2]
[349738931,1737403837082,-500.0,0.00019725,2]
[349738932,1737403837091,-557.61,0.00019725,2]
[349738933,1737403837101,-500.0,0.00019725,2]
[349738934,1737403837110,-500.0,0.00019725,2]
[349738935,1737403837122,-500.0,0.00019725,2]
[349738936,1737403837131,-500.0,0.00019725,2]
[349738937,1737403837141,-500.0,0.00019725,2]
[349738938,1737403837150,-500.0,0.00019725,2]
[349738939,1737403837159,-582.25,0.00019725,2]
[349738940,1737403837168,-697.64,0.00019725,2]
[349738941,1737403837177,-835.46,0.00019725,2]
[349738942,1737403837186,-500.0,0.00019725,2]
[349738943,1737403837199,-500.0,0.00019725,2]
[349738944,1737403837208,-500.0,0.00019725,2]
[349738945,1737403837216,-500.0,0.00019725,2]
[349738946,1737403837226,-500.0,0.00019725,2]
[349738947,1737403837235,-895.18,0.00019725,2]
[349738948,1737403837244,-513.59,0.00019725,2]
[349738949,1737403837253,-500.0,0.00019725,2]
[349738950,1737403837262,-576.04,0.00019725,2]
[349738951,1737403837272,-500.0,0.00019725,2]
[349738952,1737403837282,-500.0,0.00019725,2]
[349738953,1737403837290,-500.0,0.00019725,2]
[349738954,1737403837299,-500.0,0.00019725,2]
[349738955,1737403837308,-497.97589825,0.00019725,2]
[349738956,1737403837317,-539.46,0.00019725,2]
[349738957,1737403837327,-500.0,0.00019725,2]
[349738958,1737403837336,-605.08746106,0.00019725,2]
[349738959,1737403837345,-381.14479947,0.00019725,2]
[349738960,1737403837354,-500.0,0.00019725,2]
[349738961,1737403837363,-500.0,0.00019725,2]
[349738962,1737403837375,-500.0,0.00019725,2]
[349738963,1737403837385,-500.0,0.00019725,2]
[349738964,1737403837396,-500.0,0.00019725,2]
[349738965,1737403837405,-500.0,0.00019725,2]
[349738966,1737403837414,-709.16,0.00019725,2]
[349738967,1737403837424,-500.0,0.00019725,2]
[349738968,1737403837433,-1133.72,0.00019725,2]
[349738969,1737403837442,-500.0,0.00019725,2]
[349738970,1737403837451,-825.69,0.00019725,2]
[349738971,1737403837460,-650.98,0.00019725,2]
[349738972,1737403837470,-500.0,0.00019725,2]
[349738973,1737403837479,-500.0,0.00019725,2]
[349738974,1737403837488,-562.73,0.00019725,2]
[349738975,1737403837497,-500.0,0.00019725,2]
[349738976,1737403837506,-1720.14,0.00019725,2]
[349738977,1737403837516,-1280.89,0.00019725,2]
[349738978,1737403837525,-779.42,0.00019725,2]
[349738979,1737403837534,-500.0,0.00019725,2]
[349738980,1737403837543,-500.0,0.00019725,2]
[349738981,1737403837552,-500.0,0.00019725,2]
[349738982,1737403837562,-1617.07,0.00019725,2]
[349738983,1737403837571,-501.80002644,0.00019725,2]
[349738984,1737403837580,-544.0528145,0.00019725,2]
[349738985,1737403837589,-853.26,0.00019725,2]
[349738986,1737403837599,-500.0,0.00019725,2]
[349738987,1737403837608,-500.0,0.00019725,2]
[349738988,1737403837619,-501.33762575,0.00019725,2]
[349738989,1737403837629,-2251.22,0.00019725,2]
[349738990,1737403837638,-4023.84,0.00019725,2]
[349738991,1737403837647,-500.0,0.00019725,2]
[349738992,1737403837657,-2117.02,0.00019725,2]
[349738994,1737403837666,-501.79615603,0.00019725,2]
[349738995,1737403837675,-629.27,0.00019725,2]
[349738996,1737403837686,-225.60049379,0.00019725,2]
[349738997,1737403837696,-3872.02,0.00019725,2]
[349738998,1737403837705,-829.73,0.00019725,2]
[349738999,1737403837714,-500.0,0.00019725,2]
[349739000,1737403837724,-1268.31,0.00019725,2]
[349739001,1737403837733,-206.6156386,0.00019725,2]
[349739002,1737403837743,-500.0,0.00019725,2]
[349739003,1737403837751,-500.0,0.00019725,2]
[349739004,1737403837761,-500.0,0.00019725,2]
[349739005,1737403837770,-575.05,0.00019725,2]
[349739006,1737403837779,-500.0,0.00019725,2]
[349739007,1737403837789,-302.5921796,0.00019725,2]
[349739008,1737403837798,-822.16,0.00019725,2]
[349739009,1737403837808,-3013.42,0.00019725,2]
[349739010,1737403837817,-927.85,0.00019725,2]
[349739011,1737403837827,-500.0,0.00019725,2]
[349739012,1737403837837,-1282.05,0.00019725,2]
[349739013,1737403837846,-3255.86,0.00019725,2]
[349739014,1737403837856,-674.02,0.00019725,2]
[349739015,1737403837866,-1929.5,0.00019725,2]
[349739016,1737403837876,-500.0,0.00019725,2]
[349739017,1737403837886,-2097.2,0.00019725,2]
[349739018,1737403837896,-500.0,0.00019725,2]
[349739019,1737403837906,-500.0,0.00019725,2]
[349739020,1737403837915,-500.0,0.00019725,2]
[349739021,1737403837925,-500.0,0.00019725,2]
[349739022,1737403837934,-209.54264809,0.00019725,2]
[349739023,1737403837944,-500.0,0.00019725,2]
[349739024,1737403837953,-500.0,0.00019725,2]
[349739025,1737403837963,-824.96,0.00019725,2]
[349739026,1737403837972,-711.46,0.00019725,2]
[349739027,1737403837981,-500.0,0.00019725,2]
[349739028,1737403837992,-500.0,0.00019725,2]
[349739029,1737403838002,-500.0,0.00019725,2]
[349739030,1737403838013,-500.0,0.00019725,2]
[349739031,1737403838022,-500.0,0.00019725,2]
[349739032,1737403838032,-542.37,0.00019725,2]
[349739033,1737403838041,-500.0,0.00019725,2]
[349739034,1737403838051,-505.12,0.00019725,2]
[349739035,1737403838061,-1081.55,0.00019725,2]
[349739036,1737403838071,-1562.49,0.00019725,2]
[349739037,1737403838080,-911.25,0.00019725,2]
[349739038,1737403838089,-500.0,0.00019725,2]
[349739039,1737403838098,-1635.05,0.00019725,2]
[349739040,1737403838107,-500.0,0.00019725,2]
[349739041,1737403838116,-516.62,0.00019725,2]
[349739042,1737403838126,-500.0,0.00019725,2]
[349739043,1737403838135,-500.0,0.00019725,2]
[349739044,1737403838144,-500.0,0.00019725,2]
[349739045,1737403838155,-848.18,0.00019725,2]
[349739046,1737403838164,-500.0,0.00019725,2]
[349739047,1737403838173,-500.0,0.00019725,2]
[349739048,1737403838183,-500.0,0.00019725,2]
[349739050,1737403838194,-1000.0,0.00019725,2]
[349739052,1737403838204,-500.0,0.00019725,2]
[349739054,1737403838212,-1429.07,0.00019725,2]
[349739055,1737403838221,-500.0,0.00019725,2]
[349739056,1737403838231,-1035.76,0.00019725,2]
[349739057,1737403838242,-1295.03,0.00019725,2]
[349739058,1737403838251,-500.0,0.00019725,2]
[349739060,1737403838260,-500.0,0.00019725,2]
[349739061,1737403838270,-500.0,0.00019725,2]
[349739063,1737403838279,-507.66154877,0.00019725,2]
[349739065,1737403838288,-500.0,0.00019725,2]
[349739066,1737403838297,-550.1011808,0.00019725,2]
[349739068,1737403838307,-635.34,0.00019725,2]
[349739069,1737403838317,-512.06085558,0.00019725,2]
[349739070,1737403838326,-500.0,0.00019725,2]
[349739072,1737403838336,-557.66,0.00019725,2]
[349739073,1737403838345,-500.0,0.00019725,2]
[349739074,1737403838354,-500.0,0.00019725,2]
[349739075,1737403838363,-500.0,0.00019725,2]
[349739076,1737403838373,-500.0,0.00019725,2]
[349739077,1737403838384,-500.0,0.00019726,2]
[349739078,1737403838393,-1031.17,0.00019726,2]
[349739079,1737403838403,-500.0,0.00019726,2]
[349739080,1737403838412,-615.35,0.00019726,2]
[349739081,1737403838422,-641.4,0.00019726,2]
[349739082,1737403838431,-500.0,0.00019726,2]
[349739083,1737403838441,-500.0,0.00019726,2]
[349739084,1737403838450,-500.0,0.00019726,2]
[349739085,1737403838461,-500.0,0.00019726,2]
[349739086,1737403838471,-741.81,0.00019726,2]
[349739087,1737403838480,-500.0,0.00019726,2]
[349739088,1737403838489,-500.0,0.00019726,2]
[349739089,1737403838499,-679.35,0.00019726,2]
[349739090,1737403838509,-500.0,0.00019726,2]
[349739091,1737403838519,-243.39231974,0.00019751,2]
[349739092,1737403838528,-500.0,0.00019773,2]
[349739093,1737403838537,-309.00425931,0.00019795,2]
[349739094,1737403838547,-500.0,0.00019796,2]
[349739095,1737403838556,-2838.62,0.00019796,2]
[349739096,1737403838566,-867.4,0.00019796,2]
[349739097,1737403838575,-620.12,0.00019796,2]
[349739098,1737403838595,-1772.57,0.00019796,2]
[349739099,1737403838606,-697.687434,0.00019796,2]
[349739100,1737403838618,-500.0,0.00019796,2]
[349739101,1737403838629,-500.0,0.00019796,2]
[349739102,1737403838638,-551.11,0.00019796,2]
[349739103,1737403838649,-500.0,0.00019796,2]
[349739104,1737403838659,-490.807594,0.00019796,2]
[349739105,1737403838669,-1404.68,0.00019796,2]
[349739106,1737403838679,-2182.52,0.00019796,2]
[349739107,1737403838689,-1282.85,0.00019796,2]
[349739108,1737403838699,-500.0,0.00019796,2]
[349739109,1737403838709,-634.2,0.00019796,2]
[349739110,1737403838718,-3088.94,0.00019796,2]
[349739111,1737403838728,-855.77,0.00019796,2]
[349739112,1737403838738,-670.81,0.00019796,2]
[349739113,1737403838748,-1269.38,0.00019796,2]
[349739114,1737403838758,-500.0,0.00019796,2]
[349739115,1737403838768,-588.68,0.00019796,2]
[349739116,1737403838778,-1670.4,0.00019796,2]
[349739117,1737403838788,-1284.11,0.00019796,2]
[349739118,1737403838798,-1402.28,0.00019796,2]
[349739119,1737403838808,-2403.73,0.00019796,2]
[349739120,1737403838818,-2608.19,0.00019796,2]
[349739121,1737403838827,-968.07,0.00019796,2]
[349739122,1737403838838,-936.97,0.00019796,2]
[349739123,1737403838848,-2980.18,0.00019796,2]
[349739124,1737403838858,-500.0,0.00019797,2]
[349739125,1737403838870,-500.0,0.00019797,2]
[349739126,1737403838879,-500.0,0.00019797,2]
[349739127,1737403838889,-500.0,0.00019797,2]
[349739128,1737403838898,-500.0,0.00019797,2]
[349739129,1737403838907,-500.0,0.00019797,2]
[349739130,1737403838917,-500.0,0.00019797,2]
[349739131,1737403838926,-449.13646041,0.00019797,2]
[349739132,1737403838935,-500.0,0.00019797,2]
[349739133,1737403838945,-500.0,0.00019797,2]
[349739134,1737403838954,-500.0,0.00019797,2]
[349739135,1737403838964,-500.0,0.00019797,2]
[349739136,1737403838975,-500.0,0.00019797,2]
[349739137,1737403838985,-500.0,0.00019797,2]
[349739138,1737403838995,-500.0,0.00019797,2]
[349739139,1737403839006,-500.0,0.00019797,2]
[349739140,1737403839017,-500.0,0.00019797,2]
[349739141,1737403839027,-500.0,0.00019797,2]
[349739142,1737403839037,-500.0,0.00019797,2]
[349739143,1737403839047,-500.0,0.00019797,2]
[349739144,1737403839057,-500.0,0.00019797,2]
[349739145,1737403839067,-500.0,0.00019797,2]
[349739146,1737403839077,-500.0,0.00019797,2]
[349739147,1737403839087,-500.0,0.00019797,2]
[349739148,1737403839097,-500.0,0.00019797,2]
[349739149,1737403839107,-500.0,0.00019797,2]
[349739150,1737403839119,-590.72,0.00019797,2]
[349739151,1737403839128,-500.0,0.00019797,2]
[349739152,1737403839138,-500.0,0.00019797,2]
[349739153,1737403839147,-500.0,0.00019797,2]
[349739154,1737403839157,-500.0,0.00019797,2]
[349739155,1737403839167,-500.0,0.00019797,2]
[349739156,1737403839177,-500.0,0.00019797,2]
[349739157,1737403839187,-500.0,0.00019797,2]
[349739158,1737403839201,-692.05,0.00019797,2]
[349739159,1737403839211,-500.0,0.00019797,2]
[349739160,1737403839221,-500.0,0.00019797,2]
[349739161,1737403839232,-500.0,0.00019797,2]
[349739162,1737403839242,-500.0,0.00019797,2]
[349739163,1737403839251,-285.93035026,0.00019797,2]
[349739164,1737403839261,-500.0,0.00019797,2]
[349739165,1737403839271,-500.0,0.00019797,2]